Cogmind - Beta 11.1 @@@ ROGUE MODE // 2022.11.06 @ 18:36:16 Player: BRiNK Result: Destroyed by G-47 Trooper with Particle Gun Performance ------------- Evolutions (2) 1000 Regions Visited (4) 800 Robots Destroyed (42) 210 Value Destroyed (1359) 1359 Prototype IDs (2) 40 Alien Tech Used (0) 0 Bonus (21) 21 TOTAL SCORE: 3430 Bonus ------- Follower Combat Kills 21 Cogmind --------- Core Integrity 0/550 Matter 244/300 Energy 36/125 System Corruption 9% Temperature Cool (43) Movement Treading (170) Location -8/Materials Parts ------- > --- POWER (2) -------- Light Ion Engine > --- PROPULSION (2) --- Armored Treads Armored Treads > --- UTILITY (4) ------ Medium Storage Unit Improved Sensor Array Advanced Targeting Computer Dynamic Insulation System > --- WEAPON (3) ------- Particle Gun Improved Medium Laser Ion Cannon > --- INVENTORY (10) --- Particle Charger Mini Grenade Launcher Improved Datajack Peak State ------------ > --- POWER ------------ Heavy Ion Engine Light Deuterium Engine > --- PROPULSION ------- Wheel Wheel > --- UTILITY ---------- Improved Heat Sink Medium Storage Unit Improved Sensor Array Improved Signal Interpreter > --- WEAPON ----------- Particle Gun Improved Medium Laser Gauss Rifle > --- INVENTORY -------- Advanced Targeting Computer Particle Charger Mini Grenade Launcher Improved Datajack [Rating: 28] Favorites ----------- Power Heavy Ion Engine Engine Heavy Ion Engine Power Core Light Nuclear Core Propulsion Light Treads Treads Light Treads Leg Aluminum Leg Wheel Wheel Utility Improved Heat Sink Device Improved Heat Sink Storage Small Storage Unit Processor Improved Targeting Computer Protection Light Armor Plating Weapon Light Cannon Energy Gun Improved Medium Laser Energy Cannon Particle Cannon Ballistic Gun Light Assault Rifle Ballistic Cannon Light Cannon Special Melee Weapon Datajack Build | -11 -10 -10 -9 -8 ------- Run | Scr Mat Min Mat Mat Slots Evolved 4 | . . . 2 2 Power 1 | . . . . 1 Propulsion . | . . . . . Utility 2 | . . . 1 1 Weapon 1 | . . . 1 . Parts Attached 54 | 6 3 3 14 28 Power 9 | 1 1 1 2 4 Engine 8 | 1 1 1 2 3 Core 1 | . . . . 1 Reactor . | . . . . . Propulsion 12 | 2 . . 2 8 Treads 6 | 2 . . 2 2 Leg 4 | . . . . 4 Wheel 2 | . . . . 2 Hover . | . . . . . Flight . | . . . . . Utility 13 | 1 1 . 4 7 Device 5 | . . . 2 3 Storage 2 | 1 . . 1 . Processor 5 | . . . 1 4 Hackware . | . . . . . Protection 1 | . 1 . . . Artifact . | . . . . . Weapon 20 | 2 1 2 6 9 Energy Gun 5 | . . . 1 4 Energy Cannon 2 | . . . 1 1 Ballistic Gun 9 | 2 . 2 2 3 Ballistic Cannon 3 | . 1 . 1 1 Launcher . | . . . . . Special Weapon . | . . . . . Impact Weapon . | . . . . . Slashing Weapon . | . . . . . Piercing Weapon . | . . . . . Special Melee Weapon 1 | . . . 1 . Unidentified Prototypes 2 | . . . 1 1 Parts Lost 19 | . . . 3 16 Power 3 | . . . . 3 Propulsion 5 | . . . 1 4 Utility 5 | . . . 1 4 Weapon 6 | . . . 1 5 Highest Loss Streak 5 | . . . 2 5 To Critical Strikes . | . . . . . Average Slot Usage (%) 94 | . 95 100 93 94 Engine 11 | . 12 14 11 10 Core 2 | . . . . 4 Treads 13 | . 28 28 17 4 Leg 4 | . . . . 10 Device 11 | . . . 10 15 Storage 10 | . 14 14 11 9 Processor 7 | . . . 7 9 Protection 3 | . 11 14 3 . Energy Gun 3 | . . . 2 5 Energy Cannon 3 | . . . 4 4 Ballistic Gun 11 | . 22 14 12 8 Ballistic Cannon 8 | . 5 14 9 7 Naked Turns . | . . . . . Heaviest Build 41 | 10 15 16 30 41 Greatest Support 40 | 40 40 40 40 40 Greatest Overweight (x) 9 | . . . 1 9 Average Overweight (x) . | . . . . . Largest Inventory Capacity 10 | 8 8 8 10 10 Average Capacity 8 | 7 8 8 8 10 Most Carried 9 | 3 6 7 9 9 Average Carried 4 | . 3 5 4 5 Final Capacity 10 | 8 8 8 10 10 Final Carried 6 | 1 5 6 4 3 Class Distribution -------------------- 34% | Mutant 28% | Scavenger-Skirmisher 22% | Gunner 8% | Scavenger-Gunner 5% | Scavenger-Mutant Dominant Class ---------------- Mutant | -10/Materials Mutant | -10/Mines Gunner | -9/Materials Scavenger-Skirmisher | -8/Materials Resources | -11 -10 -10 -9 -8 ----------- Run | Scr Mat Min Mat Mat Matter Collected 1404 | 260 27 132 301 684 Remotely . | . . . . . Salvage Created 1432 | . 49 64 342 977 Parts 91 | . 3 10 23 55 Haulers Intercepted 1 | . . . 1 . Recyclers Shooed 1 | . . . . 1 Parts Field Recycled . | . . . . . Retrieved Matter . | . . . . . Parts Self-Destructed . | . . . . . Prevented . | . . . . . Kills | -11 -10 -10 -9 -8 ------- Run | Scr Mat Min Mat Mat Combat Hostiles Destroyed 35 | . 1 6 10 18 Guns 18 | . 1 3 5 9 Cannons 17 | . . 3 5 9 Classes Destroyed 10 | . 2 1 1 6 Builder 2 | . . . . 2 Hauler 1 | . . . 1 . Recycler 1 | . . . . 1 Watcher 3 | . 1 . 1 1 Swarmer 10 | . . 6 4 . Grunt 17 | . 1 . 6 10 Brawler 1 | . . . . 1 Sentry 2 | . . . . 2 Hunter 4 | . . . . 4 Heavy 1 | . . . . 1 Best Kill Streak 4 | . 1 3 4 2 Combat Bots Only 4 | . 1 3 4 2 Max Kills in Single Turn 2 | . 1 1 2 1 Gunslinging . | . . . . . Exploded . | . . . . . Melee . | . . . . . Uniques/NPCs Destroyed . | . . . . . Combat | -11 -10 -10 -9 -8 -------- Run | Scr Mat Min Mat Mat Damage Taken 3237 | . 77 214 499 2447 Core 689 | . 13 42 74 560 Absorbed by Shields . | . . . . . Regen/Repaired (Parts) 67 | . 18 . 49 . Core Remaining (%) 86 | 100 . 78 81 . Volleys Fired 125 | . 9 15 27 74 Largest 3 | . 2 2 3 3 Hottest 181 | . 55 55 152 181 Shots Fired 314 | . 18 30 76 190 Gun 178 | . 16 15 45 102 Cannon 136 | . 2 15 31 88 Launcher . | . . . . . Special . | . . . . . Kinetic 225 | . 18 30 67 110 Thermal 80 | . . . 6 74 Explosive . | . . . . . Electromagnetic 9 | . . . 3 6 Robot Hit Streak 19 | . 6 7 6 19 Robot Miss Streak 8 | . 3 8 4 3 Penetration Max 1 | . . . . 1 Secondary Targets . | . . . . . Shots Hit Robots 184 | . 12 14 38 120 Core Hits 72 | . 6 7 18 41 Critical Kills . | . . . . . Critical Parts Destroyed . | . . . . . Critical Strikes 3 | . . 1 . 2 Blast 3 | . . 1 . 2 Melee Attacks . | . . . . . Impact . | . . . . . Slashing . | . . . . . Piercing . | . . . . . Sneak Attacks . | . . . . . Combat Hostiles . | . . . . . Follow-up Attacks . | . . . . . Damage Inflicted 3266 | . 118 173 549 2426 Guns 1767 | . 83 67 305 1312 Cannons 1481 | . 35 106 237 1103 Explosions . | . . . . . Melee . | . . . . . Ramming 18 | . . . 7 11 Kinetic 2154 | . 118 173 474 1389 Thermal 971 | . . . 21 950 Explosive . | . . . . . Electromagnetic 123 | . . . 47 76 Impact . | . . . . . Slashing . | . . . . . Piercing . | . . . . . Highest Corruption 9 | . . . . 9 Average Corruption 7 | . . . . 7 Corruption Purged . | . . . . . Corruption Blocked . | . . . . . Effects 36 | . . . . 36 Message Errors 5 | . . . . 5 Matter Fused 15 | . . . . 15 Energy Discharges 3 | . . . . 3 Data Loss (minor) 7 | . . . . 7 Data Loss (major) 2 | . . . . 2 Misfires 1 | . . . . 1 Alerts 1 | . . . . 1 Weapon Failures 2 | . . . . 2 Overload Shots . | . . . . . Overflow Damage 3 | . . . 3 . Projectiles 3 | . . . 3 . Explosions . | . . . . . Melee . | . . . . . Knockbacks 9 | . . 2 2 5 Impact . | . . . . . Kinetic 8 | . . 1 2 5 Secondary 1 | . . 1 . . Self-Inflicted Damage . | . . . . . Shots . | . . . . . Rammed 4 | . . . 3 1 Targets Rammed 7 | . . . 3 4 Kicked 3 | . . . . 3 Crushed . | . . . . . Highest Temperature 222 | . 20 52 181 222 Average Temperature 58 | . 9 25 48 73 Received Heat Transfer 1266 | . 63 . 159 1044 Siege Activations . | . . . . . Robots Corrupted . | . . . . . Combat Hostiles . | . . . . . Parts Fried . | . . . . . Impact Corruptions . | . . . . . Robots Melted . | . . . . . Combat Hostiles . | . . . . . Parts Melted 1 | . . . . 1 Heat Transferred 1850 | . . . 37 1813 Parts Sabotaged . | . . . . . Parts Stolen . | . . . . . Parts Stripped . | . . . . . Power Chain Reactions . | . . . . . Missiles Intercepted . | . . . . . Alert | -11 -10 -10 -9 -8 ------- Run | Scr Mat Min Mat Mat Peak Influence 300 | . 82 249 291 300 Initial 96 | . . 31 96 65 Average 118 | . 25 125 146 126 Maximum Alert Level 1 | . . 1 1 1 Low Security (%) 82 | 100 100 94 68 85 Level 1 17 | . . 5 31 14 Level 2 . | . . . . . Level 3 . | . . . . . Level 4 . | . . . . . Level 5 . | . . . . . High Security . | . . . . . Max Security . | . . . . . Squads Dispatched 6 | . . . 1 5 Investigation 3 | . . . 1 2 Extermination . | . . . . . Reinforcement 3 | . . . . 3 Assault . | . . . . . Garrison . | . . . . . Intercept . | . . . . . Searches Triggered . | . . . . . Construction Impeded 2 | . . . . 2 Haulers Reinforced . | . . . . . Active Scanning Responses . | . . . . . Cargo Convoy Interrupts . | . . . . . Stealth | -11 -10 -10 -9 -8 --------- Run | Scr Mat Min Mat Mat Distress Signals 3 | . . . 1 2 Communications Jammed . | . . . . . Distress Signals . | . . . . . Times Spotted 58 | . 4 8 23 23 Peak Tracking Total 4 | . 2 3 4 4 Tactical Retreats 7 | . 1 . 3 3 Traps | -11 -10 -10 -9 -8 ------- Run | Scr Mat Min Mat Mat Traps Triggered 4 | . . . 1 3 Indirectly . | . . . . . Trap Hack Attempts . | . . . . . Triggered . | . . . . . Disarmed . | . . . . . Reprogrammed . | . . . . . Reused . | . . . . . Traps Extracted . | . . . . . Installed . | . . . . . Triggered . | . . . . . Machines | -11 -10 -10 -9 -8 ---------- Run | Scr Mat Min Mat Mat Machines Disabled 4 | . . . . 4 Max in Single Turn 1 | . . . . 1 Machines Sabotaged . | . . . . . Garrisons Compromised . | . . . . . Overloaded Fab Kills . | . . . . . Hacking | -11 -10 -10 -9 -8 --------- Run | Scr Mat Min Mat Mat Machines Accessed 9 | . 1 . 3 5 Terminals 5 | . . . 1 4 Fabricators . | . . . . . Repair Stations 2 | . 1 . 1 . Recycling Units . | . . . . . Scanalyzers 2 | . . . 1 1 Garrison Access . | . . . . . Total Hacks 23 | . 2 . 5 16 Successful 10 | . 2 . 4 4 Failed 13 | . . . 1 12 Catastrophic 4 | . . . 1 3 Database Lockouts . | . . . . . Manual 6 | . . . 1 5 Terminals 11 | . . . 1 10 Fabricators . | . . . . . Repair Stations 4 | . 2 . 2 . Recycling Units . | . . . . . Scanalyzers 8 | . . . 2 6 Garrison Access . | . . . . . Terminal Hacks . | . . . . . Fabricator Hacks . | . . . . . Repair Station Hacks 4 | . 2 . 2 . Scan Component 2 | . 1 . 1 . Repair 2 | . 1 . 1 . Recycling Unit Hacks . | . . . . . Scanalyzer 6 | . . . 2 4 Insert Component 3 | . . . 1 2 Analyze 3 | . . . 1 2 Garrison Access Hacks . | . . . . . Unauthorized Hacks . | . . . . . Terminals . | . . . . . Fabricators . | . . . . . Repair Stations . | . . . . . Recycling Units . | . . . . . Scanalyzers . | . . . . . Garrison Access . | . . . . . Data Cores Recovered . | . . . . . Used . | . . . . . Hacking Detections 9 | . 1 . 3 5 Full Trace Events 1 | . . . . 1 Feedback Events . | . . . . . Feedback Blocked . | . . . . . Robot Schematics Acquired . | . . . . . Robots Built . | . . . . . Authchips . | . . . . . Time . | . . . . . Total Robot Build Rating . | . . . . . Part Schematics Acquired 3 | . . . 1 2 Parts Built . | . . . . . Authchips . | . . . . . Time . | . . . . . Total Part Build Rating . | . . . . . Parts Repaired 2 | . 1 . 1 . Time 52 | . 26 . 26 . Parts Recycled . | . . . . . Recycled Matter . | . . . . . Retrieved Matter . | . . . . . Retrieved Components . | . . . . . Parts Scanalyzed 3 | . . . 1 2 Part Schematics Acquired 3 | . . . 1 2 Parts Damaged . | . . . . . Bothacking | -11 -10 -10 -9 -8 ------------ Run | Scr Mat Min Mat Mat Used RIF Installer . | . . . . . Robots Hacked . | . . . . . Non-combat . | . . . . . Combat . | . . . . . Robot Hacks Applied . | . . . . . Relay Couplers Released . | . . . . . Fabnet Peak Effective % . | . . . . . Robots Rewired . | . . . . . Allies Hacked . | . . . . . Hacks Repelled . | . . . . . Allies | -11 -10 -10 -9 -8 -------- Run | Scr Mat Min Mat Mat Total Allies 2 | . . 2 . . Largest Group 2 | . . 2 1 . Highest-Rated Group 42 | . . 42 31 . Highest-Rated Ally 31 | . . 31 31 . Total Orders . | . . . . . Ally Attacks 8 | . . 5 3 . Total Damage 107 | . . 86 21 . Kills 3 | . . 3 . . Allies Corrupted . | . . . . . Allies Melted . | . . . . . Intel | -11 -10 -10 -9 -8 ------- Run | Scr Mat Min Mat Mat Robot Analysis Total . | . . . . . Derelict Logs Recovered 1 | . . 1 . . Drone Launches . | . . . . . Drone Recoveries . | . . . . . Exploration | -11 -10 -10 -9 -8 ------------- Run | Scr Mat Min Mat Mat Turns Passed 3065 | 89 335 254 1050 1337 Spaces Moved 1391 | 51 170 129 491 550 Core 9 | 4 . . . 5 Treads 981 | 47 170 129 491 144 Legs 303 | . . . . 303 Wheels 98 | . . . . 98 Hover . | . . . . . Flight . | . . . . . Fastest Speed 50 | 50 160 160 160 95 Average Speed 174 | 151 160 160 182 176 Slowest Speed 500 | 160 160 160 240 500 Overloaded Moves . | . . . . . Propulsion Burnouts . | . . . . . Robots Hopped . | . . . . . Cave-ins Triggered . | . . . . . Exploration Rate (%) 28 | 4 32 40 34 32 Regions Visited 4 Branch Regions 1 Pre-discovered Areas . | . . . . . Known Exits Taken . | . . . . . Unknown Exits Taken 4 | 1 1 1 1 . Scrap Searched . | . . . . . Spaces Dug . | . . . . . Terrain Destroyed 5 | . . . . 5 Melee . | . . . . . Projectile 5 | . . . . 5 AOE . | . . . . . Terrain Rammed . | . . . . . Walls Destroyed . | . . . . . Machines Disabled . | . . . . . Actions | -11 -10 -10 -9 -8 --------- Run | Scr Mat Min Mat Mat Total 1783 | 63 219 149 586 766 Wait 132 | . 30 . 28 74 Move 1387 | 50 169 128 490 550 Hop . | . . . . . Pick Up 55 | 7 7 2 13 26 Fast Attach 1 | . . . 1 . Attach 41 | 6 3 . 8 24 Detach 1 | . . . . 1 Swap 12 | . . 3 5 4 Drop 22 | . 1 1 11 9 Fire 125 | . 9 15 27 74 Melee . | . . . . . Ram . | . . . . . Kick 3 | . . . . 3 Crush 4 | . . . 3 1 Escape Stasis . | . . . . . Rewire . | . . . . . Trap . | . . . . . Miscellaneous . | . . . . . Route ------- -11/Scrapyard -10/Materials -10/Mines -9/Materials -8/Materials History --------- Turn | Location | Event 14 | -11/Scrapyard | Discovered new exit (range 15) 90 | -11/Scrapyard | Entered Materials 324 | -10/Materials | Build established: Mutant 361 | -10/Materials | Discovered new exit (range 16) 400 | -10/Materials | Repaired Lgt. Ion Engine 425 | -10/Materials | Entered Mines 445 | -10/Mines | Met a Derelict bent on vengeance 563 | -10/Mines | Learned Materials garrison access intel 673 | -10/Mines | Discovered new exit (range 3) 679 | -10/Mines | Entered Materials 679 | -9/Materials | Accompanied by 1 ally 679 | -9/Materials | Evolved 2 slots: Utility x1, Weapon x1 684 | -9/Materials | Led the pair of lost Derelicts to an unsafe place 725 | -9/Materials | Repaired Lgt. Treads 1261 | -9/Materials | Build established: Gunner 1671 | -9/Materials | Discovered new exit (range 9) 1729 | -9/Materials | Entered another Materials area 1729 | -8/Materials | Evolved 2 slots: Power x1, Utility x1 1730 | -8/Materials | Loaded intel: 1 garrison access location 2029 | -8/Materials | Lost 4 parts (2n2u) 2504 | -8/Materials | Build established: Scavenger-Skirmisher 2813 | -8/Materials | Lost 5 parts (1p2n2w) 2921 | -8/Materials | Core integrity fell below 50% 2965 | -8/Materials | Lost 4 parts (2p2u) 3000 | -8/Materials | Core integrity fell below 20% 3066 | -8/Materials | Destroyed by G-47 Trooper with Particle Gun Last Messages --------------- 03000_ Slug penetrates H-55 Commando. 03000_ H-55 Commando destroyed. 03000_ Particle Gun destroyed. 03008_ Acquired 42 matter. 03009_ Critical hit (Burn: +37). 03011_ U-05 Engineer destroyed. 03015_ R-06 Scavenger collects Wheel. 03015_ Acquired 30 matter. 03018_ Slug penetrates G-47 Trooper. 03024_ Critical hit (Burn: +37). 03028_ System corrupted: Matter fused (-5). 03040_ G-47 Trooper destroyed. 03046_ Slug penetrates G-47 Trooper. 03048_ Processing Tank disabled. 03052_ Slug penetrates G-47 Trooper. 03054_ Gauss Rifle destroyed. 03055_ G-47 Trooper destroyed. 03060_ Acquired 41 matter. 03063_ System corrupted: Component data lost. 03063_ Acquired Particle Gun. Map ----- +----------------------------------------------------+ | ??????????##=##] #????# #??# #???# ##### | | ########### =# ######+#### T #???# #? | | % %% + "T" # # #???# # | | ########### # """ # # #???# # "" | | ??????????## ## # # #???# + "" | | ???????????# ######### / # #???# # "" | | ??????????## ##??????########### #???# # | | ??????????#% ############ ###+####### #?### | | ??????????# !% #???? | | ??????????# ############ #???? | | ??????????#####??????????# #???? | | ?????????????????????????# ###############???? | | ???????????????????######## ###############????? | | ???????????????????# = #?% T #????? | | ???????????????????# [# % "????? | | ???????????????????# "" + % ? % #????? | | ???????????????????# [S"" # """" #????? | | ???????????????????# "" # " """"" #????? | | ???????????????????# # """" ^""""" #????? | | ???????????????????######## #????? | | ??????????????????????????# ? #????? | | ??????????????????????????# #????? | | ??????????????????????????# #????? | | ????????????????########### ########### #????? | | ????????????????# g=%=# #???##????# #????? | | ????????????????# """ " @# ########??# #????? | | ????????????????# """ "" # #??# #????? | | ????????????????# """ """ + #?? ????? | | ????????????????# """ """ # #?? "" ????? | | ????????????????# """ """ ### #### #?? T ????? | | ????????????????# #?# #??# #?? ? ????? | | ????????????????# #?# #??# #?? ?? ????? | | ????????????????#############/#### #????? #????? | | ???????????????????????# !!== # #???????????? | | ????????????#######????# """ "" # #???????????? | | ???????????? ??# """ !" # #???????????? | | ??????????? # " / #???????????? | | ??????????? # % != # #???????????? | | ??????????? # # #???????????? | | ??????????????? """ # # #???????????? | | ????????????????""""" # % % # #???????????? | | ????????????????""""" ?########### #???????????? | | ?????????????????""""????????????# #???????????? | | ??????????????????"??????????????# #???????????? | | ?????????????????????????????????# #???????????? | | ?????????????????????????????????? #???????????? | | ?????????????????????????????????? #???????????? | | ?????????????????????????????????? ???????????? | | ?????????????????????????????????? ???????????? | | ?????????????????????????????????? ???????????? | +----------------------------------------------------+ Best States ------------- Heat Dissipation 45 Energy Generation 23 Energy Capacity 460 Matter Stores 300 Matter Capacity 300 Sight Range 18 Robot Scan Range 15 Terrain Scan Density 10 ECM Strength 1 EM Shielding 2 Armor Coverage 150 Evasion (%) 41 Targeting Accuracy 8 Recoil Reduction 2 Item Schematics ----------------- Hvy. Ion Engine | -9/Materials | Scanalyzed Adv. Targeting Computer | -8/Materials | Scanalyzed Mni. Grenade Launcher | -8/Materials | Scanalyzed Robot Schematics ------------------ None Fabricated ------------ Nothing Alien Tech Used ----------------- None Achievements -------------- None Challenges ------------ None Game ------ Seed AlloyThrowingDetector Manual? 0 Play Time 00:35:45 Cumulative 13.1 hours Start 2022.11.06 @ 17:56:00 End 2022.11.06 @ 18:36:16 Sessions 1 Manual Loads 0 Difficulty Rogue Special Mode None Game No. 18 Rogue 18 Adventurer 0 Explorer 0 Win Type - Total 0 Types 0/0/0/0/0/0/0/0/0 Lore% 16 Gallery% 16 Achievement% 14 Wizard Run 0 Options --------- ASCII 0 Keyboard 0 Movement Mouse Keybinds 0 Fullscreen 1 Font 24/Crisp Map View 76x50 Tactical HUD 1 Map Filters NONE Filters NONE Steam 1 RUN: 4224eb23-471b-45a9-8adc-b4e62877d4ee